Cogmind - Beta 15 @@@ ROGUE MODE // 2025.06.10 @ 05:22:19 Player: CL-1C0 Result: Self-destructed Performance ------------- Evolutions (1) 500 Regions Visited (2) 400 Robots Destroyed (10) 50 Value Destroyed (149) 149 Prototype IDs (0) 0 Alien Tech Used (0) 0 Bonus (0) 0 TOTAL SCORE: 1099 Bonus ------- None Cogmind --------- Core Integrity 390/400 Matter 46/300 Energy 100/100 System Corruption 0% Temperature Cool (0) Movement Treading (160) Location -9/Materials Parts ------- > --- POWER (1) -------- (None) > --- PROPULSION (2) --- Light Treads Light Treads > --- UTILITY (4) ------ (None) > --- WEAPON (2) ------- Grenade Launcher > --- INVENTORY (5) ---- Flight Unit Flight Unit Flight Unit Peak State ------------ > --- POWER ------------ (None) > --- PROPULSION ------- Light Treads Light Treads > --- UTILITY ---------- (None) > --- WEAPON ----------- Grenade Launcher > --- INVENTORY -------- (None) [Rating: 3] Favorites ----------- Power None Propulsion Light Treads Treads Light Treads Utility None Weapon Grenade Launcher Launcher Grenade Launcher Build | -11 -10 -9 ------- Run | Yrd Mat Mat Slots Evolved 2 | . . 2 Power . | . . . Propulsion . | . . . Utility 2 | . . 2 Weapon . | . . . Parts Attached 3 | 2 1 . Power . | . . . Engine . | . . . Core . | . . . Reactor . | . . . Propulsion 2 | 2 . . Treads 2 | 2 . . Leg . | . . . Wheel . | . . . Hover . | . . . Flight . | . . . Utility . | . . . Device . | . . . Storage . | . . . Processor . | . . . Hackware . | . . . Protection . | . . . Artifact . | . . . Weapon 1 | . 1 . Energy Gun . | . . . Energy Cannon . | . . . Ballistic Gun . | . . . Ballistic Cannon . | . . . Launcher 1 | . 1 . Special Weapon . | . . . Impact Weapon . | . . . Slashing Weapon . | . . . Piercing Weapon . | . . . Special Melee Weapon . | . . . Unidentified Prototypes . | . . . Parts Lost . | . . . Power . | . . . Propulsion . | . . . Utility . | . . . Weapon . | . . . Highest Loss Streak . | . . . To Critical Strikes . | . . . Average Backups 1 | 4 . 2 Power . | 1 . . Propulsion 1 | 2 . 1 Utility . | . . . Weapon . | 1 . . Tool/Special . | . . . Unused Backups 2 | . . 2 Power . | . . . Propulsion 2 | . . 2 Utility . | . . . Weapon . | . . . Tool/Special . | . . . Average Slot Usage (%) 28 | . 30 26 Treads 25 | . 28 22 Launcher 3 | . 2 4 Peak Build Rating 3 | 2 3 3 Average Rating 2 | 1 2 2 On Entrance 3 | 6 2 2 Naked Turns . | . . . Heaviest Build . | . . . Greatest Support 3 | 3 3 3 Greatest Overweight (x) . | . . . Average Overweight (x) . | . . . Largest Inventory Capacity 5 | 5 5 5 Average Capacity 5 | 5 5 5 Most Carried 4 | 4 2 4 Average Carried 1 | 2 1 2 Final Capacity 5 | 5 5 5 Final Carried 3 | . 2 3 Class Distribution -------------------- None Dominant Class ---------------- None Resources | -11 -10 -9 ----------- Run | Yrd Mat Mat Matter Collected 196 | 194 . 2 Remotely . | . . . Salvage Created 84 | . 63 21 Parts 16 | . 9 7 Haulers Intercepted 1 | . 1 . Recyclers Shooed 1 | . 1 . Parts Field Recycled . | . . . Retrieved Matter . | . . . Parts Self-Destructed . | . . . Prevented . | . . . Kills | -11 -10 -9 ------- Run | Yrd Mat Mat Combat Hostiles Destroyed 7 | . 4 3 AOE 7 | . 4 3 Classes Destroyed 5 | . 4 1 Tunneler 1 | . . 1 Hauler 1 | . 1 . Operator 1 | . 1 . Swarmer 6 | . 3 3 Grunt 1 | . 1 . Best Kill Streak 10 | . 6 10 Combat Bots Only 4 | . 4 3 Max Kills in Single Turn 2 | . 2 2 Gunslinging . | . . . Exploded 2 | . 2 2 Melee . | . . . Uniques/NPCs Destroyed . | . . . Combat | -11 -10 -9 -------- Run | Yrd Mat Mat Hostile Shots Fired 17 | . 13 4 Missed 4 | . 4 . Hits 13 | . 9 4 Projectile 13 | . 9 4 Critical Strikes 1 | . 1 . Damage Taken 236 | . 147 89 Core 44 | . 34 10 Absorbed by Shields . | . . . Core Remaining (%) 93 | 100 86 . Volleys Fired 18 | . 7 11 Largest 1 | . 1 1 Hottest 30 | . 30 30 Shots Fired 18 | . 7 11 Gun . | . . . Cannon . | . . . Launcher 18 | . 7 11 Special . | . . . Kinetic . | . . . Thermal . | . . . Explosive 18 | . 7 11 Electromagnetic . | . . . Robot Hit Streak 3 | . 3 . Robot Miss Streak 2 | . 2 1 Penetration Max . | . . . Secondary Targets . | . . . Shots Hit Robots 4 | . 4 . Core Hits 15 | . 10 5 Critical Kills . | . . . Critical Parts Destroyed . | . . . Critical Strikes . | . . . Melee Attacks . | . . . Impact . | . . . Slashing . | . . . Piercing . | . . . Sneak Attacks . | . . . Combat Hostiles . | . . . Follow-up Attacks . | . . . Damage Inflicted 575 | . 327 248 Guns . | . . . Cannons . | . . . Explosions 575 | . 327 248 Melee . | . . . Ramming . | . . . Kinetic . | . . . Thermal . | . . . Explosive 575 | . 327 248 Electromagnetic . | . . . Impact . | . . . Slashing . | . . . Piercing . | . . . Highest Corruption . | . . . Average Corruption . | . . . Corruption Purged . | . . . Corruption Blocked . | . . . Overload Shots . | . . . Overflow Damage . | . . . Projectiles . | . . . Explosions . | . . . Melee . | . . . Knockbacks . | . . . Impact . | . . . Kinetic . | . . . Secondary . | . . . Self-Inflicted Damage 138 | . 79 59 Shots 7 | . 3 4 Rammed . | . . . Targets Rammed . | . . . Kicked . | . . . Crushed . | . . . Highest Temperature 5 | . 5 . Average Temperature 5 | . 5 . Received Heat Transfer 12 | . 12 . Siege Activations . | . . . Martial Activations . | . . . Shielding Activations . | . . . Robots Disrupted . | . . . Combat Hostiles . | . . . Robots Corrupted . | . . . Combat Hostiles . | . . . Parts Fried . | . . . Impact Corruptions . | . . . Robots Melted . | . . . Combat Hostiles . | . . . Parts Melted . | . . . Heat Transferred . | . . . Parts Sabotaged . | . . . Parts Stolen . | . . . Parts Stripped . | . . . Power Chain Reactions . | . . . Alert | -11 -10 -9 ------- Run | Yrd Mat Mat Maximum Alert Level . | . . . Low Security (%) 100 | 100 100 100 Level 1 . | . . . Level 2 . | . . . Level 3 . | . . . Level 4 . | . . . Level 5 . | . . . High Security . | . . . Max Security . | . . . Peak Influence 193 | . 193 168 Initial 81 | . . 81 Average 108 | . 94 136 Influence Increases 303 | . 203 100 Destroy 0b10 Robot/C 140 | . 80 60 Destroy 0b10 Robot/NC 15 | . 10 5 Destroy Leader 32 | . 22 10 Disable Machine 45 | . 45 . Destroy Structure 56 | . 31 25 Partial Spotted 15 | . 15 . Influence Decreases 142 | . 10 132 Entered New Map 112 | . . 112 Time Decay 30 | . 10 20 Squads Dispatched 1 | . 1 . Investigation 1 | . 1 . Extermination . | . . . Reinforcement . | . . . Assault . | . . . Garrison . | . . . Intercept . | . . . Searches Triggered . | . . . Construction Impeded . | . . . Haulers Reinforced . | . . . Active Scanning Responses . | . . . Cargo Convoy Interrupts . | . . . Stealth | -11 -10 -9 --------- Run | Yrd Mat Mat Distress Signals . | . . . Communications Jammed . | . . . Distress Signals . | . . . Times Spotted 9 | . 5 4 Peak Tracking Total 5 | . 5 3 Tactical Retreats . | . . . Traps | -11 -10 -9 ------- Run | Yrd Mat Mat Traps Triggered . | . . . Indirectly . | . . . Trap Hack Attempts . | . . . Triggered . | . . . Disarmed . | . . . Reprogrammed . | . . . Reused . | . . . Traps Extracted . | . . . Installed . | . . . Triggered . | . . . Machines | -11 -10 -9 ---------- Run | Yrd Mat Mat Machines Disabled 3 | . 3 . Max in Single Turn 1 | . 1 . Machines Repaired . | . . . Machines Dismantled . | . . . Machines Sabotaged . | . . . Overloaded Fab Kills . | . . . Hacking | -11 -10 -9 --------- Run | Yrd Mat Mat Machines Accessed 1 | . 1 . Terminals 1 | . 1 . Fabricators . | . . . Repair Stations . | . . . Recycling Units . | . . . Scanalyzers . | . . . Garrison Access . | . . . Total Hacks 3 | . 3 . Successful . | . . . Failed 3 | . 3 . Catastrophic 1 | . 1 . Database Lockouts . | . . . Manual 3 | . 3 . Terminals 3 | . 3 . Fabricators . | . . . Repair Stations . | . . . Recycling Units . | . . . Scanalyzers . | . . . Garrison Access . | . . . Terminal Hacks . | . . . Fabricator Hacks . | . . . Repair Station Hacks . | . . . Recycling Unit Hacks . | . . . Scanalyzer . | . . . Garrison Access Hacks . | . . . Unauthorized Hacks . | . . . Terminals . | . . . Fabricators . | . . . Repair Stations . | . . . Recycling Units . | . . . Scanalyzers . | . . . Garrison Access . | . . . Data Cores Recovered . | . . . Used . | . . . Hacking Detections 1 | . 1 . Full Trace Events 1 | . 1 . Feedback Events . | . . . Feedback Blocked . | . . . Robot Schematics Acquired . | . . . Robots Built . | . . . Authchips . | . . . Time . | . . . Total Robot Build Rating . | . . . Part Schematics Acquired . | . . . Parts Built . | . . . Authchips . | . . . Time . | . . . Total Part Build Rating . | . . . Parts Repaired . | . . . Time . | . . . Parts Recycled . | . . . Recycled Matter . | . . . Retrieved Matter . | . . . Retrieved Components . | . . . Parts Scanalyzed . | . . . Part Schematics Acquired . | . . . Parts Damaged . | . . . Bothacking | -11 -10 -9 ------------ Run | Yrd Mat Mat Used RIF Installer . | . . . Robots Hacked . | . . . Non-combat . | . . . Combat . | . . . Robot Hacks Applied . | . . . Relay Couplers Released . | . . . Fabnet Peak Effective % . | . . . Robots Rewired . | . . . Allies Hacked . | . . . Hacks Repelled . | . . . Allies | -11 -10 -9 -------- Run | Yrd Mat Mat Total Allies . | . . . Largest Group . | . . . Highest-Rated Group . | . . . Highest-Rated Ally . | . . . Total Orders . | . . . Ally Attacks . | . . . Total Damage . | . . . Kills . | . . . Allies Corrupted . | . . . Allies Melted . | . . . Intel | -11 -10 -9 ------- Run | Yrd Mat Mat Active Infowar (turns) . | . . . Robot Analysis Total . | . . . Derelict Logs Recovered . | . . . Drone Launches . | . . . Drone Recoveries . | . . . Exploration | -11 -10 -9 ------------- Run | Yrd Mat Mat Turns Passed 103 | 4 54 45 Spaces Moved 104 | 1 67 36 Core 104 | 1 67 36 Treads . | . . . Legs . | . . . Wheels . | . . . Hover . | . . . Flight . | . . . Fastest Speed 50 | 50 50 50 Average Speed 50 | 50 50 50 Slowest Speed 50 | 50 50 50 Overloaded Moves . | . . . Propulsion Burnouts . | . . . Robots Hopped . | . . . Potential Cave-ins . | . . . Cave-ins Triggered . | . . . Exploration Rate (%) 11 | 2 23 9 Regions Visited 2 Branch Regions . Pre-discovered Areas . | . . . Known Exits Taken . | . . . Unknown Exits Taken 2 | 1 1 . Scrap Searched . | . . . Spaces Dug 4 | . . 4 Terrain Destroyed 85 | . 29 56 Melee . | . . . Projectile . | . . . AOE 85 | . 29 56 Terrain Rammed . | . . . Walls Destroyed . | . . . Machines Disabled . | . . . Actions | -11 -10 -9 --------- Run | Yrd Mat Mat Total 138 | 5 81 52 Wait . | . . . Move 102 | . 66 36 Hop . | . . . Pick Up 4 | . 2 2 Fast Attach . | . . . Attach 7 | 2 3 2 Detach 4 | . 3 1 Swap . | . . . Drop 3 | 3 . . Fire 18 | . 7 11 Melee . | . . . Ram . | . . . Kick . | . . . Crush . | . . . Escape Stasis . | . . . Rewire . | . . . Trap . | . . . Miscellaneous . | . . . Route ------- -11/Scrapyard -10/Materials -9/Materials History --------- Turn | Location | Event 1 | -11/Scrapyard | Released all parts (6) 5 | -11/Scrapyard | Discovered new exit (range 0) 5 | -11/Scrapyard | Entered Materials 45 | -10/Materials | Discovered new exit (range 13) 59 | -10/Materials | Entered another Materials area 59 | -9/Materials | Evolved 2 slots: Utility x2 104 | -9/Materials | Self-destructed Last Messages --------------- 00037_ O-16 Technician destroyed. 00043_ K-01 Serf collects debris. 00045_ EXIT=FOUND 00047_ K-01 Serf collects debris. 00056_ A-02 Transporter destroyed. PARAMETERS=UTILITY+2 LOCATION=UNKNOWN GOAL=ESCAPE 00066_ T-07 Excavator is excavating. 00071_ S-10 Pest destroyed. 00074_ T-07 Excavator is excavating. 00077_ Acquired Flight Unit. 00078_ Acquired 2 matter. 00078_ T-07 Excavator is excavating. 00079_ Acquired Flight Unit. 00080_ R-06 Scavenger collects Lgt. Ion Engine. 00084_ R-06 Scavenger collects Lgt. Assault Rifle. 00086_ T-07 Excavator destroyed. 00099_ The unstable cave ceiling collapses. 00100_ R-06 Scavenger collects Lgt. Ion Engine. Map ----- +----------------------------------------------------+ | ???????????????????????????????????????????? | | ???????????????????????????????????????????? | | ????????????????????????? ???????????????? | | ??????????????????????? ???????????????? | | ?????????????????????? #??????????????? | | ?????????????????????? #??????????????? | | ??????????????????????? #??????????????? | | ??????????????????????? #??????????????? | | ??????????????????####?# #??????????????? | | ?????????????????? ?# #??????????????? | | ???????????????# " # #??????????????? | | ????????????? ?? "" + #??????????????? | | ???????????# ?? "" # #??????????????? | | ???????????# ?? """ # #??????????????? | | ???????????# ?? "" ##+####????????? | | ???????????# ?? """ #######??? | | ???????????# # """ % ?? | | ???????????# # """ % #????????? | | ???????????# # " ## #????????? | | ???????????# # = # #?????????????? | | ???????????# ######??# #?????????????? | | ??????????## ##?????## ###?????????????? | | ??????????# ####### #??????????????? | | ??????????# #??????????????? | | ??????????# " r " #??????????????? | | ??????????# @ #??????????????? | | ??????????# # #??????????????? | | ????######## # ######??????????????? | | ????# # # ??????????????????? | | ????#= # ## ""????????????????? | | ????# + # """???????????????? | | ????# """ # # """???????????????? | | ????# """ # # """???????????????? | | ????# """ ?# # """???????????????? | | ????######?##### ????????????????? | | ???????????????# ""???????????????? | | ???????????????# # ! ????????????????? | | ???????????????# ""???????????????? | | ???????????????######## ????????????????? | | ???????????????????????????????????????????? | | ???????????????????????????????????????????? | | ???????????????????????????????????????????? | | ???????????????????????????????????????????? | | ???????????????????????????????????????????? | | ???????????????????????????????????????????? | | ???????????????????????????????????????????? | | ???????????????????????????????????????????? | | ???????????????????????????????????????????? | | ???????????????????????????????????????????? | | ???????????????????????????????????????????? | +----------------------------------------------------+ Best States ------------- Heat Dissipation 28 Energy Generation 5 Energy Capacity 100 Matter Stores 274 Matter Capacity 300 Sight Range 16 Terrain Scan Density 10 Evasion (%) 50 Recoil Reduction 2 Item Schematics ----------------- None Robot Schematics ------------------ None Fabricated ------------ Nothing Repaired ---------- Nothing Alien Tech Used ----------------- None Achievements -------------- None Challenges ------------ None Game ------ Seed ShrapnelThrusterScythe Manual? 0 Play Time 00:02:29 Cumulative 531.2 hours Start 2025.06.10 @ 05:20:30 End 2025.06.10 @ 05:22:19 Sessions 1 Manual Loads 0 Difficulty Rogue Special Mode None Game No. 611 Rogue 611 Adventurer 0 Explorer 0 Win Type - Total 18 Types 12/0/5/1/0/0/0/0/0/0 Lore% 83 Gallery% 82 Achievement% 82 Wizard Run 0 Options --------- Layout 0 ASCII 0 Keyboard 0 Movement Numpad Keybinds 0 Fullscreen 1 Font 18/SmallcapsGlow Map View 76x50 Zoom Use 0% Tactical HUD 1 Map Filters NONE Filters NONE Steam 1 RUN: 1c0de1b4-4358-4c66-82e9-53ea014b7af8